bitfinex-derivatives/quotes_SOLF0:USTF0_20250101
["timestamp","ask_amount","ask_price","bid_price","bid_amount"]
[1735708066141,0.79511055,189.95,189.92,2.6382]
[1735708066342,0.79511634,189.94,189.92,2.6382]
[1735708066542,5.32993971,189.96,189.92,2.6382]
[1735708066743,3.43302313,189.95,189.92,2.6382]
[1735708066939,0.79512313,189.94,189.92,2.6382]
[1735708067244,0.79512344,189.94,189.91,10.36081126]
[1735708067443,2.6379,189.95,189.91,10.36081126]
[1735708067745,0.79511779,189.94,189.91,10.36081126]
[1735708069244,2.6379,189.95,189.91,10.36081126]
[1735708069441,0.7951242,189.94,189.91,10.36081126]
[1735708071645,2.6379,189.95,189.91,10.36081126]
[1735708071848,0.79509536,189.94,189.91,10.36081126]
[1735708073041,0.79509536,189.94,189.89,7.72241126]
[1735708073240,0.79509536,189.93,189.89,10.36101126]
[1735708073442,0.79509536,189.92,189.89,10.36101126]
[1735708073638,2.638,189.94,189.89,10.36101126]
[1735708073847,0.79502512,189.93,189.89,10.36101126]
[1735708074347,0.79503126,189.92,189.9,2.6386]
[1735708074541,2.638,189.94,189.9,2.6386]
[1735708074749,0.79502642,189.93,189.9,2.6386]
[1735708077241,0.79503708,189.92,189.9,2.6386]
[1735708077443,2.638,189.94,189.9,2.6386]
[1735708077647,0.79504139,189.93,189.9,2.6386]
[1735708078549,0.79504139,189.93,189.89,7.72241126]
[1735708078847,0.79504139,189.93,189.91,2.6384]
[1735708079649,14.37434952,189.96,189.84,2.94]
[1735708079650,2.6383,189.92,189.84,2.94]
[1735708079850,2.6383,189.92,189.88,7.72241126]
[1735708080447,2.6382,189.93,189.89,2.6386]
[1735708080639,2.6382,189.93,189.88,7.72241126]
[1735708080951,0.79502841,189.92,189.88,7.72241126]
[1735708081249,2.6382,189.93,189.88,7.72241126]
[1735708081450,2.6382,189.93,189.9,2.6386]
[1735708082551,2.638,189.94,189.91,2.6383]
[1735708083551,10.41455097,189.96,189.9,7.72241126]
[1735708083755,0.79527747,189.95,189.9,7.72241126]
[1735708084152,8.25003971,189.96,189.9,7.72241126]
[1735708084352,0.79531061,189.95,189.92,2.6382]
[1735708084557,0.79531061,189.95,189.9,7.72241126]
[1735708084854,0.79531061,189.95,189.94,2.638]
[1735708086757,2.69213971,189.96,189.95,2.6379]
[1735708087056,3.48746253,189.96,189.95,2.6379]
[1735708087458,2.69213971,189.96,189.95,2.6379]
[1735708089161,89.77861528,189.99,189.95,2.6379]
[1735708089358,0.79520273,189.98,189.95,2.6379]
[1735708090057,87.14121528,189.99,189.96,2.6376]
[1735708090258,0.79520496,189.98,189.96,2.6376]
[1735708091253,0.79520496,189.98,189.95,2.6379]
[1735708091557,0.79520496,189.98,189.94,7.72241126]
[1735708091959,0.79520496,189.98,189.95,2.6378]
[1735708094658,0.79518566,189.97,189.95,2.6378]
[1735708094859,7.72241126,190.0,189.95,2.6378]
[1735708095158,0.79520657,189.99,189.94,2.638]
[1735708095358,7.72241126,189.98,189.92,7.72241126]
[1735708095560,0.79520657,189.97,189.92,7.72241126]
[1735708096559,0.79520657,189.97,189.93,2.6381]
[1735708096560,2.6378,189.96,189.93,2.6381]
[1735708096762,0.79520657,189.95,189.93,2.6381]
[1735708097961,2.6378,189.96,189.92,7.72241126]
[1735708098163,0.79511842,189.95,189.92,10.36071126]
[1735708098359,0.79511842,189.95,189.92,7.72241126]
[1735708098562,7.72241126,189.98,189.92,7.72241126]
[1735708098766,0.79514141,189.97,189.92,7.72241126]
[1735708098958,3.43284141,189.97,189.92,7.72241126]
[1735708099158,0.79514141,189.96,189.92,7.72241126]
[1735708099359,2.6377,189.97,189.94,2.638]
[1735708100966,2.6375,189.98,189.95,2.6379]
[1735708101166,0.79527237,189.97,189.95,2.6379]
[1735708101663,65.58284631,189.99,189.95,2.6379]
[1735708101859,0.79530751,189.98,189.95,2.6379]
[1735708102556,0.79514703,189.97,189.95,2.6379]
[1735708102766,65.58284631,189.99,189.92,7.72241126]
[1735708102961,0.79514823,189.98,189.92,7.72241126]
[1735708104165,0.79514823,189.98,189.94,7.72241126]
[1735708104466,0.79514823,189.98,189.95,2.6378]
[1735708105265,0.79501412,189.97,189.96,2.6377]
[1735708105665,0.79501412,189.98,189.96,2.6377]
[1735708105966,0.79498064,189.97,189.96,2.6377]
[1735708106266,65.58284631,189.99,189.96,2.6377]
[1735708106468,0.79497983,189.98,189.96,2.6377]
[1735708108068,9.34131126,190.03,189.94,2.92]
[1735708108365,0.79500898,190.02,189.95,7.72241126]
[1735708108662,2.6373,190.0,189.96,2.6376]
[1735708108861,0.79500898,189.99,189.92,2.92]
[1735708109069,0.79500898,189.98,189.93,7.72241126]
[1735708109367,0.79500898,189.98,189.93,10.36061126]
[1735708109959,4.75348883,189.98,189.93,10.36061126]
[1735708110167,0.79500898,189.97,189.95,2.6378]
[1735708110558,3.95847985,189.98,189.95,2.6378]
[1735708110761,0.79504921,189.97,189.95,2.6378]
[1735708112169,10.35991126,189.99,189.95,2.6378]
[1735708112469,0.79508294,189.98,189.95,2.6378]
[1735708113769,0.79532268,189.97,189.95,2.6378]
[1735708114065,6.87922772,190.0,189.95,2.6378]
[1735708114267,6.87922772,190.0,189.93,7.72241126]
[1735708114268,2.6376,189.97,189.93,2.638]
[1735708116464,0.79525159,189.96,189.91,46.59178549]
[1735708117159,2.6381,189.94,189.91,46.59178549]
[1735708117564,0.79520703,189.93,189.91,46.59178549]
[1735708117764,2.6381,189.94,189.91,46.59178549]
[1735708117765,2.6381,189.94,189.91,49.23018549]
[1735708120663,7.72241126,189.95,189.91,46.59178549]
[1735708120870,0.7954093,189.94,189.91,46.59178549]
[1735708123770,14.31953898,189.95,189.91,49.23018549]
[1735708123964,0.79549228,189.94,189.91,49.23018549]
[1735708126371,2.6379,189.95,189.91,49.23018549]
[1735708126570,0.79558522,189.94,189.91,49.23018549]
[1735708126773,3.43358522,189.94,189.91,46.59178549]
[1735708126975,2.638,189.94,189.91,46.59178549]
[1735708127272,2.6383,189.92,189.91,2.52673976]
[1735708127873,2.6382,189.93,189.91,2.52673976]
[1735708135381,2.6383,189.92,189.91,2.52673976]
[1735708135586,7.72241126,189.95,189.91,2.52673976]
[1735708135783,0.79582093,189.94,189.87,7.72241126]
[1735708135984,2.6383,189.92,189.88,2.6389]
[1735708136184,11.68217103,189.95,189.88,2.6389]
[1735708136385,0.79579479,189.94,189.88,2.6389]
[1735708136782,11.68217103,189.95,189.88,2.6389]
[1735708136983,2.6384,189.92,189.88,2.6389]
[1735708138688,3.43427812,189.91,189.87,45.63765933]
[1735708138890,2.6385,189.91,189.87,45.63765933]
[1735708140592,2.92,189.92,189.89,2.6386]
[1735708141389,2.92,189.92,189.87,50.72107059]
[1735708141390,2.92,189.92,189.9,2.6385]
[1735708142793,2.92,189.92,189.87,42.99865933]
[1735708143194,0.79563099,189.91,189.87,42.99865933]
[1735708143395,3.43413099,189.91,189.88,2.6387]
[1735708143598,2.6385,189.91,189.88,2.6387]
[1735708143997,2.92,189.92,189.87,42.99865933]
[1735708144195,0.79564236,189.91,189.89,2.6387]
[1735708144699,2.6383,189.92,189.89,2.6387]
[1735708144998,0.79564056,189.91,189.89,2.6387]
[1735708145588,3.96031997,189.94,189.9,10.36101126]
[1735708145793,0.79565861,189.93,189.9,7.72241126]
[1735708145998,2.92,189.96,189.9,7.72241126]
[1735708146191,0.79574206,189.95,189.92,2.6382]
[1735708146597,15.77579766,189.97,189.92,2.6382]
[1735708146796,0.79577059,189.96,189.92,2.6382]
[1735708147401,2.6379,189.95,189.92,2.6382]
[1735708147997,11.81547769,189.97,189.9,7.72241126]
[1735708148200,3.43358419,189.96,189.93,2.6381]
[1735708148499,0.79578419,189.95,189.93,2.6381]
[1735708149394,2.6378,189.96,189.93,2.6381]
[1735708149594,0.79585339,189.95,189.93,2.6381]
[1735708150098,0.79585339,189.95,189.9,7.72241126]
[1735708150301,0.79585339,189.95,189.92,2.6383]
[1735708151098,0.79585339,189.95,189.94,2.638]
[1735708151298,0.79585339,189.95,189.94,7.72241126]
[1735708151500,2.52416643,189.97,189.94,7.72241126]
[1735708152294,2.52416643,189.97,189.95,2.6379]
[1735708154195,2.52416643,189.97,189.96,2.6377]
[1735708154396,2.52416643,189.97,189.94,7.72241126]
[1735708155508,2.52416643,189.97,189.94,10.36041126]
[1735708156807,0.7960178,189.96,189.94,10.36041126]
[1735708157001,2.52416643,189.97,189.94,10.36041126]
[1735708157305,0.79599357,189.96,189.94,10.36041126]
[1735708157701,2.52416643,189.97,189.94,10.36041126]
[1735708165310,0.79637612,189.96,189.94,10.36041126]
[1735708166111,0.79637612,189.96,189.92,10.36061126]
[1735708167512,2.6379,189.95,189.92,10.36061126]
[1735708169112,2.6379,189.95,189.9,10.23869819]
[1735708169308,10.24657769,189.97,189.9,10.23869819]
[1735708169309,0.79625981,189.94,189.9,10.23869819]
[1735708169507,0.79625981,189.93,189.9,10.23869819]
[1735708169709,7.72241126,189.95,189.9,2.51628693]
[1735708169913,3.434361,189.94,189.9,5.15478693]
[1735708170113,0.796261,189.93,189.9,2.51628693]
[1735708170313,0.796261,189.94,189.9,2.51628693]
[1735708170509,0.796261,189.93,189.9,2.51628693]
[1735708171212,8.51867226,189.93,189.88,10.36121126]
[1735708171412,0.796261,189.92,189.88,2.6388]
[1735708171607,0.796261,189.92,189.87,42.99865933]
[1735708172217,2.6386,189.9,189.87,42.99865933]
[1735708180517,2.6386,189.9,189.87,50.72107059]
[1735708184121,2.6386,189.9,189.87,53.36007059]
[1735708187330,2.6386,189.9,189.87,50.72107059]
[1735708187530,2.6388,189.89,189.87,50.72107059]
[1735708188026,0.7952842,189.88,189.85,10.36161126]
[1735708188226,75.58218532,189.91,189.85,10.36161126]
[1735708188432,0.79528004,189.9,189.85,10.36161126]
[1735708189230,0.79525573,189.89,189.85,10.36161126]
[1735708189431,2.6389,189.89,189.85,10.36161126]
[1735708189730,75.58218532,189.91,189.85,7.72241126]
[1735708189935,0.79526722,189.9,189.86,2.639]
[1735708191530,3.43386722,189.9,189.86,2.639]
[1735708191840,2.6386,189.9,189.86,2.639]
[1735708192038,70.49827406,189.91,189.87,7.72241126]
[1735708192335,0.79530451,189.9,189.87,7.72241126]
[1735708192528,70.49827406,189.91,189.87,7.72241126]
[1735708193031,0.7952874,189.9,189.87,7.72241126]
[1735708193432,64.91977406,189.91,189.87,7.72241126]
[1735708193829,64.91977406,189.91,189.89,2.6386]
[1735708198032,64.91977406,189.91,189.89,10.36101126]
[1735708201241,64.91977406,189.91,189.89,2.6386]
[1735708202037,67.55817406,189.91,189.89,2.6386]
[1735708202233,67.55817406,189.91,189.87,7.72241126]
[1735708202437,67.55817406,189.91,189.88,2.6388]
[1735708203645,64.91977406,189.91,189.89,2.6387]
[1735708203943,64.91977406,189.91,189.87,7.72241126]
[1735708204243,1.527,189.96,189.86,45.44241789]
[1735708204244,6.98206643,189.97,189.89,7.72241126]
[1735708204448,0.79528184,189.96,189.92,7.72241126]
[1735708204947,3.43308184,189.96,189.92,10.36061126]
[1735708205144,0.79528184,189.95,189.92,7.72241126]
[1735708205546,4.06206643,189.97,189.92,7.72241126]
[1735708206151,6.69976643,189.97,189.93,2.6381]
[1735708207247,2.6378,189.96,189.93,2.6381]
[1735708211352,2.6378,189.96,189.92,10.36071126]
[1735708212250,2.6378,189.96,189.93,2.6381]
[1735708212748,2.52416643,189.97,189.94,7.72241126]
[1735708212952,2.52416643,189.97,189.94,10.36031126]
[1735708213158,2.52416643,189.97,189.94,7.72241126]
[1735708214460,2.52416643,189.97,189.95,2.6379]
[1735708214664,3.95881813,190.0,189.96,7.72241126]
[1735708214961,3.43293888,189.99,189.96,10.36011126]
[1735708215155,2.6374,189.99,189.96,10.36011126]
[1735708216258,2.6372,190.0,189.91,2.66189115]
[1735708216456,2.6372,190.0,189.96,7.72241126]
[1735708216856,2.6372,190.0,189.96,10.36001126]
[1735708217757,2.6372,190.0,189.97,2.6376]
[1735708218252,400.2374465,190.14,189.98,7.72241126]
[1735708218459,2.6368,190.03,190.0,10.35951126]
[1735708222664,2.6368,190.03,190.0,7.72241126]
[1735708222968,7.72241126,190.04,189.98,7.72241126]
[1735708223164,0.79604413,190.03,189.98,7.72241126]
[1735708223569,7.72241126,190.04,189.98,7.72241126]
[1735708223765,0.7960556,190.03,189.98,7.72241126]
[1735708224464,2.6372,190.01,189.98,7.72241126]
[1735708229477,70.61405039,190.04,189.98,7.72241126]
[1735708229478,2.6369,190.02,189.98,10.35981126]
[1735708241388,2.6369,190.02,189.98,2.6374]
[1735708241588,7.72241126,190.02,189.96,2.6377]
[1735708241788,0.79646294,190.01,189.96,2.6377]
[1735708242683,2.6374,189.99,189.96,2.6377]
[1735708246985,2.6374,189.99,189.94,7.72241126]
[1735708247189,2.6374,189.99,189.95,2.6378]
[1735708247998,2.6374,189.99,189.94,7.72241126]
[1735708248194,2.6374,189.99,189.96,2.6377]
[1735708248395,2.6374,189.99,189.96,41.65100634]
[1735708259404,2.6372,190.0,189.96,41.65100634]
[1735708261404,2.6371,190.01,189.97,2.6375]
[1735708261604,0.79632565,190.0,189.97,2.6375]
[1735708261805,2.6371,190.01,189.97,2.6375]
[1735708262000,2.6371,190.01,189.98,2.6374]
[1735708262305,62.89163913,190.04,189.98,7.72241126]
[1735708262501,0.79632329,190.03,189.98,7.72241126]
[1735708262703,62.89163913,190.04,189.96,39.01330634]
[1735708262905,62.89163913,190.04,189.99,7.72241126]
[1735708263300,2.6368,190.03,190.0,2.6371]
[1735708263501,62.89163913,190.04,190.0,2.6371]
[1735708263901,65.52833913,190.04,190.0,2.6371]
[1735708264802,2.6365,190.05,190.01,10.35941126]
[1735708265306,2.6363,190.07,190.03,10.35921126]
[1735708265507,0.7959558,190.06,190.03,10.35921126]
[1735708265897,58.89747046,190.08,190.03,10.35921126]
[1735708266099,0.79594401,190.07,190.03,10.35921126]
[1735708267509,3.43234513,190.06,190.03,10.35921126]
[1735708267713,2.6364,190.06,190.03,10.35921126]
[1735708268407,0.79595249,190.05,189.96,39.01330634]
[1735708268605,2.6366,190.05,190.01,10.35941126]
[1735708269008,2.6366,190.05,190.01,7.72241126]
[1735708269311,2.6366,190.05,190.02,2.6369]
[1735708273109,3.95728853,190.07,190.01,7.72241126]
[1735708273312,3.43234822,190.06,190.03,2.6368]
[1735708273613,2.6364,190.06,190.03,2.6368]
[1735708277715,2.6364,190.06,190.02,2.6369]
[1735708278316,2.6363,190.07,190.03,10.35901126]
[1735708278511,2.6363,190.07,190.03,7.72241126]
[1735708279118,57.29527046,190.08,190.03,7.72241126]
[1735708279311,0.7958627,190.07,190.04,2.6366]
[1735708280009,3.4320627,190.07,190.03,10.35911126]
[1735708280211,2.6362,190.07,190.03,10.35911126]
[1735708283318,2.6362,190.07,190.03,2.6367]
[1735708283519,2.6362,190.07,190.03,10.35911126]
[1735708285121,55.71617046,190.08,190.05,2.6365]
[1735708286323,55.71617046,190.08,190.05,2.6364]
[1735708287722,1.5092,190.13,190.09,2.6359]
[1735708287924,0.79564838,190.12,190.09,2.6359]
[1735708288821,4.1446,190.13,190.09,2.6359]
[1735708289227,2.6355,190.12,190.08,2.636]
[1735708290325,2.6354,190.14,190.1,2.6358]
[1735708290523,0.79559358,190.13,190.1,2.6358]
[1735708291622,2.6354,190.14,190.1,2.6358]
[1735708300822,1.80129278,190.16,190.09,7.72241126]
[1735708301023,2.6353,190.14,190.09,10.35831126]
[1735708303228,0.79554967,190.13,190.09,10.35831126]
[1735708304029,3.43094967,190.13,190.09,10.35831126]
[1735708304230,2.6354,190.13,190.09,10.35831126]
[1735708305421,2.6354,190.13,190.09,2.6359]
[1735708305625,2.6354,190.13,190.09,10.35831126]
[1735708307732,2.6354,190.13,190.1,2.6358]
[1735708308727,2.6358,190.1,190.07,38.99120977]
[1735708308931,1.80129278,190.16,190.07,38.99120977]
[1735708308932,7.72241126,190.11,190.07,38.99120977]
[1735708310530,2.636,190.09,190.07,38.99120977]
[1735708311432,2.6357,190.11,190.07,41.62740977]
[1735708312129,1.6045,190.13,190.08,7.72241126]
[1735708312331,0.79567582,190.12,190.09,2.6359]
[1735708312532,1.5336,190.14,190.09,2.6359]
[1735708312934,0.7956122,190.13,190.09,2.6359]
[1735708313532,3.4310122,190.13,190.09,2.6359]
[1735708313735,0.7956122,190.12,190.09,2.6359]
[1735708314532,2.6354,190.13,190.09,2.6359]
[1735708315436,0.79559776,190.12,190.09,2.6359]
[1735708316547,2.6354,190.13,190.09,2.6359]
[1735708317541,0.79559776,190.12,190.09,2.6359]
[1735708318347,0.79559776,190.12,190.1,7.72241126]
[1735708318549,7.72241126,190.15,190.11,2.6357]
[1735708318750,0.79555526,190.14,190.11,2.6357]
[1735708320649,10.35751126,190.15,190.11,2.6357]
[1735708320842,0.79555048,190.14,190.11,2.6357]
[1735708321048,0.79555048,190.14,190.12,2.6355]
[1735708321351,1.80129278,190.16,190.12,7.72241126]
[1735708321548,0.79548211,190.15,190.12,7.72241126]
[1735708322249,0.79548211,190.15,190.12,10.35791126]
[1735708322649,1.80129278,190.16,190.12,10.35791126]
[1735708322849,0.7954619,190.15,190.12,10.35791126]
[1735708327852,4.43629278,190.16,190.12,10.35791126]
[1735708328053,0.79546165,190.15,190.12,10.35791126]
[1735708328354,1.80129278,190.16,190.14,2.6352]
[1735708328555,12.86845921,190.17,190.14,2.6352]
[1735708328754,2.6347,190.18,190.14,2.6352]
[1735708329053,0.7953962,190.17,190.14,2.6352]
[1735708330556,2.6347,190.18,190.14,2.6352]
[1735708330756,0.79537991,190.17,190.14,2.6352]
[1735708331155,2.6347,190.18,190.14,2.6352]
[1735708331356,2.6347,190.18,190.12,7.72241126]
[1735708331357,136.05784626,190.22,190.16,7.72241126]
[1735708331559,136.05784626,190.22,190.16,10.64241126]
[1735708331763,136.05784626,190.22,190.18,7.72241126]
[1735708333665,136.05784626,190.22,190.19,2.6344]
[1735708335961,136.05784626,190.22,190.2,7.72241126]
[1735708336863,2.6339,190.24,190.2,7.72241126]
[1735708339267,4.1355654,190.26,190.2,7.72241126]
[1735708339569,7.72241126,190.31,190.24,7.72241126]
[1735708339865,2.6333,190.29,190.24,10.35631126]
[1735708342267,2.6331,190.3,190.25,2.6337]
[1735708342965,2.633,190.31,190.26,10.35601126]
[1735708343563,2.633,190.31,190.28,7.72241126]
[1735708343767,2.633,190.32,190.28,7.72241126]
[1735708343968,7.72241126,190.34,190.28,7.72241126]
[1735708345670,2.633,190.32,190.28,10.35591126]
[1735708346070,2.633,190.32,190.28,13.27591126]
[1735708349777,7.72241126,190.35,190.28,10.64241126]
[1735708350168,2.6328,190.33,190.28,10.64241126]
[1735708350370,7.72241126,190.35,190.28,10.64241126]
[1735708351273,9.31841126,190.35,190.28,10.64241126]
[1735708351473,2.6333,190.3,190.28,10.64241126]
[1735708351869,7.72241126,190.33,190.26,7.72241126]
[1735708352276,7.72241126,190.31,190.26,7.72241126]
[1735708352672,7.72241126,190.31,190.25,3.53034589]
[1735708353475,2.6337,190.27,190.25,3.53034589]
[1735708355669,7.72241126,190.31,190.25,3.53034589]
[1735708355875,2.6338,190.26,190.25,3.53034589]
[1735708358071,2.6342,190.23,190.21,2.92]
[1735708358370,2.6342,190.23,190.2,7.72241126]
[1735708360969,7.72241126,190.23,190.18,7.72241126]
[1735708361573,7.72241126,190.25,190.18,7.72241126]
[1735708362175,2.6344,190.22,190.18,10.35731126]
[1735708362375,7.72241126,190.25,190.18,7.72241126]
[1735708363577,2.6345,190.21,190.18,7.72241126]
[1735708363777,7.72241126,190.25,190.18,7.72241126]
[1735708364172,62.11279395,190.27,190.2,7.72241126]
[1735708364374,69.83520521,190.27,190.17,40.08704166]
[1735708364575,69.83520521,190.27,190.2,7.72241126]
[1735708365485,2.6341,190.24,190.2,7.72241126]
[1735708372185,2.6342,190.23,190.2,7.72241126]
[1735708380889,7.72241126,190.26,190.18,7.72241126]
[1735708381083,7.72241126,190.24,190.18,7.72241126]
[1735708381580,2.6346,190.21,190.18,7.72241126]
[1735708382688,7.72241126,190.22,190.17,40.08704166]
[1735708383395,2.6349,190.19,190.17,40.08704166]
[1735708384585,2.6349,190.19,190.17,47.80945292]
[1735708390590,7.72241126,190.22,190.17,47.80945292]
[1735708390797,2.6346,190.21,190.17,47.80945292]
[1735708393697,2.6344,190.23,190.17,47.80945292]
[1735708393994,2.6344,190.23,190.18,2.6348]
[1735708395194,10.64241126,190.25,190.18,2.6348]
[1735708395498,2.6344,190.22,190.18,2.6348]
[1735708395899,2.6344,190.22,190.19,2.6348]
[1735708397394,2.05233271,190.26,190.19,7.72241126]
[1735708397602,2.05233271,190.26,190.21,7.72241126]
[1735708398501,2.634,190.25,190.22,2.6344]
[1735708401303,2.634,190.25,190.21,7.72241126]
[1735708401304,2.634,190.25,190.21,10.35691126]
[1735708401801,2.6341,190.24,190.21,10.35691126]
[1735708404707,2.6341,190.24,190.21,7.72241126]
[1735708404900,2.6343,190.23,190.21,7.72241126]
[1735708408609,2.6341,190.25,190.21,7.72241126]
[1735708408808,2.05233271,190.26,190.21,7.72241126]
[1735708409111,4.68613271,190.26,190.22,2.6343]
[1735708410116,2.6334,190.29,190.25,10.35631126]
[1735708411518,7.72241126,190.33,190.25,10.35631126]
[1735708411718,2.6333,190.3,190.25,10.35631126]
[1735708412416,7.72241126,190.33,190.27,7.72241126]
[1735708412615,3.42796259,190.32,190.27,7.72241126]
[1735708412810,2.6331,190.32,190.27,7.72241126]
[1735708413618,2.6331,190.32,190.29,7.72241126]
[1735708416421,7.72241126,190.35,190.29,7.72241126]
[1735708416621,2.6328,190.34,190.29,7.72241126]
[1735708417527,2.6328,190.34,190.3,2.6332]
[1735708422125,2.6328,190.34,190.31,7.72241126]
[1735708426129,9.33491126,190.38,190.31,7.72241126]
[1735708426331,2.6329,190.33,190.31,7.72241126]
[1735708428430,2.14342203,190.36,190.31,7.72241126]
[1735708428632,2.6328,190.34,190.31,7.72241126]
[1735708429833,2.6328,190.34,190.3,2.6332]
[1735708430032,2.6328,190.34,190.31,7.72241126]
[1735708430628,2.633,190.32,190.31,7.72241126]
[1735708430832,9.86583329,190.36,190.29,10.64241126]
[1735708431433,2.6331,190.32,190.29,10.64241126]
[1735708432535,2.6331,190.32,190.29,7.72241126]
[1735708436537,2.6328,190.34,190.31,7.72241126]
[1735708437936,2.6326,190.35,190.31,10.35551126]
[1735708438336,2.6326,190.35,190.31,2.6331]
[1735708438537,2.6326,190.35,190.31,10.35551126]
[1735708441242,4.77592203,190.36,190.32,2.6329]
[1735708441438,4.77592203,190.36,190.31,7.72241126]
[1735708441439,2.14342203,190.36,190.31,7.72241126]
[1735708441639,2.14342203,190.36,190.33,7.72241126]
[1735708443540,2.14342203,190.36,190.33,10.35511126]
[1735708444337,4.77592203,190.36,190.33,7.72241126]
[1735708446437,2.14342203,190.36,190.33,7.72241126]
[1735708446644,2.14342203,190.36,190.33,10.35511126]
[1735708447239,1.6018,190.39,190.35,7.72241126]
[1735708448136,9.32961126,190.43,190.35,7.72241126]
[1735708448442,65.5978505,190.39,190.35,10.35491126]
[1735708449543,2.6322,190.38,190.35,10.35491126]
[1735708452743,2.6322,190.38,190.35,7.72241126]
[1735708456544,62.9657505,190.39,190.36,2.6324]
[1735708457340,62.9657505,190.39,190.37,7.72241126]
[1735708459344,62.9657505,190.39,190.37,10.35471126]
[1735708460254,1.5238,190.44,190.39,2.632]
[1735708460452,1.5238,190.44,190.39,7.72241126]
[1735708461348,1.5238,190.44,190.39,10.35431126]
[1735708461349,4.1552,190.44,190.39,10.35431126]
[1735708461541,4.1552,190.44,190.39,7.72241126]
[1735708462243,4.1552,190.44,190.37,2.92]
[1735708462244,2.6311,190.46,190.42,7.72241126]
[1735708462443,3.1087,190.5,190.44,7.72241126]
[1735708462646,0.79400065,190.49,190.44,7.72241126]
[1735708462950,3.1087,190.5,190.44,7.72241126]
[1735708463146,3.1087,190.5,190.44,10.35371126]
[1735708463649,2.6311,190.46,190.44,7.72241126]
[1735708463839,2.92,190.45,190.24,76.10887575]
[1735708464039,7.72241126,190.4,190.32,7.72241126]
[1735708464240,2.6324,190.37,190.32,7.72241126]
[1735708464540,2.6324,190.37,190.34,7.72241126]
[1735708465341,2.6324,190.36,190.34,7.72241126]
[1735708466446,2.6323,190.37,190.34,7.72241126]
[1735708467550,2.6326,190.36,190.34,7.72241126]
[1735708469851,2.6327,190.35,190.32,7.72241126]
[1735708470653,2.6327,190.35,190.34,7.72241126]
[1735708471952,2.92,190.37,190.27,1.4991]
[1735708472252,7.72241126,190.34,190.18,29.27014465]
[1735708472453,7.72241126,190.34,190.22,2.6344]
[1735708472654,7.72241126,190.34,190.26,7.72241126]
[1735708473050,2.6336,190.28,190.26,7.72241126]
[1735708474156,2.6336,190.28,190.23,2.6341]
[1735708474350,2.6337,190.27,190.22,2.92]
[1735708474553,2.6337,190.27,190.24,7.72241126]
[1735708474954,7.72241126,190.3,190.19,107.60299148]
[1735708475153,7.72241126,190.28,190.21,7.72241126]
[1735708475357,2.6341,190.24,190.21,7.72241126]
[1735708475749,2.92,190.27,190.21,7.72241126]
[1735708476356,2.6338,190.26,190.23,7.72241126]
[1735708476858,2.92,190.27,190.23,7.72241126]
[1735708477057,2.634,190.25,190.23,7.72241126]
[1735708479862,2.634,190.25,190.21,7.72241126]
[1735708483062,2.6342,190.24,190.21,7.72241126]
[1735708483667,2.92,190.27,190.21,7.72241126]
[1735708483860,2.6343,190.23,190.21,7.72241126]
[1735708484059,2.92,190.27,190.19,107.60299148]
[1735708484262,2.92,190.27,190.2,7.72241126]
[1735708484658,2.6344,190.23,190.2,7.72241126]
[1735708485360,2.6346,190.21,190.2,7.72241126]
[1735708485565,2.6346,190.21,190.19,107.60299148]
[1735708486561,7.72241126,190.26,190.2,7.72241126]
[1735708487664,2.6343,190.24,190.2,7.72241126]
[1735708489763,7.72241126,190.26,190.2,7.72241126]
[1735708489967,2.6343,190.23,190.2,7.72241126]
[1735708491468,2.6343,190.23,190.2,10.35711126]
[1735708491776,2.6342,190.24,190.2,10.35711126]
[1735708492571,2.6343,190.23,190.2,10.35711126]
[1735708495079,2.6343,190.23,190.2,7.72241126]
[1735708496171,10.64241126,190.26,190.19,107.60299148]
[1735708496378,2.6346,190.21,190.19,107.60299148]
[1735708499080,2.6347,190.2,190.19,107.60299148]
[1735708500271,2.6347,190.2,190.16,7.72241126]
[1735708500477,2.6347,190.2,190.16,10.35761126]
[1735708501478,2.6347,190.21,190.17,2.6351]
[1735708501667,7.72241126,190.24,190.16,7.72241126]
[1735708502095,2.635,190.18,190.15,10.35781126]
[1735708502474,7.72241126,190.22,190.12,1.4984]
[1735708502683,7.72241126,190.18,190.11,7.72241126]
[1735708502976,7.72241126,190.16,190.09,7.72241126]
[1735708503279,7.72241126,190.16,190.08,20.23080702]
[1735708503678,2.636,190.11,190.08,20.23080702]
[1735708503876,2.94,190.17,190.08,12.50839576]
[1735708503877,7.72241126,190.14,190.08,12.50839576]